bitfinex/quotes_SOLUSD_20251216
["timestamp","ask_amount","ask_price","bid_price","bid_amount"]
[1765912430087,7.86101721,127.21,127.2,0.82]
[1765912430370,7.86101721,127.21,127.2,0.1]
[1765912430755,7.8603993,127.22,127.2,0.1]
[1765912433067,7.8603993,127.22,127.2,0.82]
[1765912434376,2.47053889,127.21,127.2,0.1]
[1765912434587,3.13053889,127.21,127.2,0.1]
[1765912434874,0.66,127.21,127.2,0.1]
[1765912435079,3.13053889,127.21,127.2,0.1]
[1765912436176,10.9915561,127.21,127.2,0.1]
[1765912436572,7.86101721,127.21,127.2,0.1]
[1765912436875,3.13053889,127.23,127.2,0.82]
[1765912437079,2.47053889,127.23,127.2,0.82]
[1765912437553,7.85978149,127.23,127.2,0.82]
[1765912437874,10.33032038,127.23,127.2,0.82]
[1765912438275,7.85978149,127.23,127.2,0.82]
[1765912438484,8.51978149,127.23,127.2,0.82]
[1765912438658,10.99032038,127.23,127.2,0.82]
[1765912439767,7.85978149,127.23,127.21,0.72]
[1765912440169,10.32994563,127.24,127.21,0.72]
[1765912441587,7.85940674,127.24,127.21,0.72]
[1765912441882,10.98994563,127.24,127.21,0.72]
[1765912442855,10.32994563,127.24,127.21,0.72]
[1765912443490,7.85940674,127.24,127.21,0.72]
[1765912443783,10.32994563,127.24,127.21,0.72]
[1765912444087,10.32994563,127.24,127.21,0.69]
[1765912444280,10.32994563,127.24,127.21,9.31]
[1765912444500,11.00994563,127.24,127.21,9.31]
[1765912445060,7.85940674,127.24,127.22,0.69]
[1765912445261,10.32994563,127.24,127.22,0.69]
[1765912446160,11.00994563,127.24,127.21,9.31]
[1765912446361,8.53940674,127.24,127.21,9.31]
[1765912446569,11.00994563,127.24,127.21,9.31]
[1765912447777,8.53940674,127.24,127.21,9.31]
[1765912447981,11.00994563,127.24,127.21,9.31]
[1765912448382,10.32994563,127.24,127.21,8.62]
[1765912448584,4.10406122,127.27,127.23,0.69]
[1765912448788,4.10406122,127.27,127.25,0.69]
[1765912449087,12.64164708,127.27,127.24,9.31]
[1765912449285,14.43218597,127.27,127.24,8.62]
[1765912449486,3.15053889,127.26,127.23,0.69]
[1765912449788,7.85854616,127.25,127.23,8.62]
[1765912449988,7.85854616,127.25,127.24,0.69]
[1765912450393,11.00908505,127.25,127.22,9.31]
[1765912450770,2.47053889,127.23,127.2,9.41]
[1765912451168,0.68,127.24,127.2,9.41]
[1765912451369,2.47053889,127.23,127.2,9.41]
[1765912451691,0.68,127.24,127.2,9.41]
[1765912451892,7.85989613,127.23,127.2,17.27161876]
[1765912452095,10.33043502,127.23,127.2,17.27161876]
[1765912452389,10.3304081,127.23,127.2,17.27161876]
[1765912453070,7.85986921,127.23,127.21,0.69]
[1765912453269,11.0104081,127.23,127.2,17.27161876]
[1765912453569,8.53986921,127.23,127.2,17.27161876]
[1765912453784,11.0104081,127.23,127.2,17.27161876]
[1765912454000,8.53986921,127.23,127.2,9.41]
[1765912454286,2.47053889,127.22,127.2,9.41]
[1765912455889,10.33097511,127.22,127.2,9.41]
[1765912456291,10.33097511,127.22,127.2,0.1]
[1765912456469,3.15053889,127.21,127.2,0.1]
[1765912457972,11.0115561,127.21,127.2,0.1]
[1765912460294,10.3315561,127.21,127.2,0.1]
[1765912460494,11.0115561,127.21,127.2,0.1]
[1765912461584,7.86101721,127.21,127.2,0.1]
[1765912462698,11.0115561,127.21,127.2,0.1]
[1765912465501,12.40423019,127.21,127.2,0.1]
[1765912472112,7.86101721,127.21,127.2,0.1]
[1765912472982,12.40423019,127.21,127.2,0.1]
[1765912474611,7.86101721,127.21,127.2,0.1]
[1765912474787,11.72423019,127.21,127.2,0.1]
[1765912475495,7.86101721,127.21,127.2,0.1]
[1765912475812,11.72423019,127.21,127.2,0.1]
[1765912476210,7.86101721,127.21,127.2,0.1]
[1765912476515,12.41423019,127.21,127.2,0.1]
[1765912484212,16.52033799,127.21,127.2,0.1]
[1765912492922,11.96712501,127.21,127.2,0.77]
[1765912493105,15.83033799,127.21,127.2,0.1]
[1765912493506,16.52033799,127.21,127.2,0.1]
[1765912497436,16.5214891,127.21,127.2,0.1]
[1765912500353,48.25347107,127.21,127.2,1e-08]
[1765912500816,44.38910698,127.21,127.2,1e-08]
[1765912501622,48.25347107,127.21,127.2,1e-08]
[1765912505542,0.65,127.16,127.15,3.29902873]
[1765912505720,4.51436409,127.16,127.15,3.29902873]
[1765912505917,25.8086731,127.16,127.15,1e-08]
[1765912506117,21.94430901,127.16,127.15,1e-08]
[1765912507548,29.80841722,127.16,127.15,1e-08]
[1765912507744,0.65,127.11,127.07,0.1]
[1765912507927,3.86436409,127.09,127.08,0.72]
[1765912508127,10.43767296,127.12,127.08,0.72]
[1765912508451,3.86436409,127.11,127.08,0.72]
[1765912509151,11.73168773,127.11,127.08,0.72]
[1765912509324,0.65,127.1,127.07,0.82]
[1765912509528,3.86436409,127.08,127.07,0.1]
[1765912509729,3.86436409,127.08,127.07,0.82]
[1765912511223,11.73342295,127.08,127.07,0.82]
[1765912511429,18.95673182,127.08,127.07,1e-08]
[1765912511748,26.68546,127.08,127.07,1e-08]
[1765912511928,22.82109591,127.08,127.07,1e-08]
[1765912512519,22.82109591,127.08,127.07,0.72000001]
[1765912512520,22.17109591,127.08,127.07,0.72000001]
[1765912512724,11.73342295,127.08,127.07,1e-08]
[1765912512924,11.73291907,127.09,127.07,1e-08]
[1765912513124,7.86761835,127.11,127.08,0.72]
[1765912513746,7.86620282,127.13,127.09,0.72]
[1765912514251,3.86436409,127.12,127.09,0.72]
[1765912514549,11.73056691,127.13,127.09,0.72]
[1765912515232,3.86436409,127.11,127.09,0.72]
[1765912515628,3.86436409,127.12,127.09,0.72]
[1765912515832,31.39547684,127.13,127.09,0.72]
[1765912516253,3.86436409,127.12,127.09,0.72]
[1765912516630,31.39547684,127.13,127.09,0.72]
[1765912517263,11.73056691,127.13,127.09,7.86836588]
[1765912517431,11.73056691,127.13,127.1,0.72]
[1765912517833,3.86436409,127.11,127.09,0.72]
[1765912519357,28.18111275,127.13,127.09,0.72]
[1765912519657,3.86436409,127.11,127.09,0.72]
[1765912519853,28.18111275,127.13,127.09,0.72]
[1765912520153,3.86436409,127.11,127.09,0.72]
[1765912520856,28.18111275,127.13,127.09,0.72]
[1765912521240,31.39547684,127.13,127.09,0.72]
[1765912521434,27.53111275,127.13,127.09,0.72]
[1765912521633,31.39547684,127.13,127.09,0.72]
[1765912521849,3.86436409,127.11,127.09,0.72]
[1765912522658,28.18111275,127.13,127.07,1e-08]
[1765912522659,4.51436409,127.1,127.07,1e-08]
[1765912522862,3.86436409,127.08,127.07,1e-08]
[1765912523065,3.86436409,127.09,127.07,1e-08]
[1765912523275,0.65,127.1,127.07,1e-08]
[1765912523437,3.86436409,127.1,127.07,1e-08]
[1765912523638,3.86436409,127.09,127.07,1e-08]
[1765912524752,7.86905886,127.08,127.07,1e-08]
[1765912524953,11.73342295,127.08,127.07,1e-08]
[1765912525469,12.38342295,127.08,127.07,1e-08]
[1765912525762,15.59778704,127.08,127.07,1e-08]
[1765912526266,11.73342295,127.08,127.07,1e-08]
[1765912527058,7.86905886,127.08,127.07,1e-08]
[1765912527247,11.73342295,127.08,127.07,1e-08]
[1765912527451,10.34678507,127.08,127.07,1e-08]
[1765912527861,7.86905886,127.08,127.07,1e-08]
[1765912528047,10.34678507,127.08,127.07,1e-08]
[1765912528257,7.86905886,127.08,127.07,1e-08]
[1765912529060,7.86862325,127.09,127.07,1e-08]
[1765912530647,7.86862325,127.09,127.07,0.72000001]
[1765912535365,10.34634946,127.09,127.07,0.72000001]
[1765912535867,7.86862325,127.09,127.07,0.72000001]
[1765912536066,10.34634946,127.09,127.07,0.72000001]
[1765912536370,7.86862325,127.09,127.07,0.72000001]
[1765912536580,10.34634946,127.09,127.07,0.72000001]
[1765912536775,10.34678507,127.08,127.07,1e-08]
[1765912537270,12.82451128,127.08,127.07,1e-08]
[1765912538680,21.6344562,127.08,127.07,1e-08]
[1765912539181,12.82451128,127.08,127.07,1e-08]
[1765912541274,12.82451128,127.08,126.98,0.69]
[1765912541275,0.66,127.06,126.98,0.69]
[1765912541480,3.13772621,127.02,126.98,0.69]
[1765912541659,3.13772621,127.02,126.99,0.69]
[1765912542281,2.47772621,127.01,126.97,7.87572597]
[1765912542484,0.66,126.99,126.95,0.69]
[1765912542675,3.13772621,126.97,126.94,8.66723285]
[1765912542975,10.43767296,126.99,126.94,8.66723285]
[1765912542976,10.43767296,126.99,126.94,7.97723285]
[1765912543161,2.47772621,126.97,126.94,8.66723285]
[1765912543360,3.13772621,126.97,126.94,8.66723285]
[1765912543562,3.13772621,126.97,126.94,0.79]
[1765912543875,3.13772621,126.97,126.94,8.66768839]
[1765912544096,2.47772621,127.01,126.97,0.69]
[1765912544380,2.47772621,126.99,126.95,0.69]
[1765912544771,3.13772621,126.98,126.94,0.1]
[1765912544970,3.13772621,126.98,126.94,0.79]
[1765912545280,2.47772621,126.98,126.94,0.79]
[1765912545485,2.47772621,126.97,126.94,0.79]
[1765912545658,3.13772621,126.97,126.94,0.1]
[1765912545861,3.13772621,126.96,126.94,0.1]
[1765912546180,2.47772621,126.96,126.94,0.1]
[1765912546382,10.35440216,126.96,126.94,0.1]
[1765912547087,10.35434346,126.96,126.94,0.1]
[1765912547300,19.68584348,127.0,126.94,0.79]
[1765912547469,7.87463579,126.99,126.94,0.79]
[1765912547664,3.13772621,126.95,126.94,0.1]
[1765912548384,11.01484318,126.95,126.94,0.1]
[1765912550264,2.47772621,126.95,126.94,0.1]
[1765912550668,8.53677188,126.96,126.94,0.1]
[1765912550873,11.01449809,126.96,126.94,0.1]
[1765912551081,2.47772621,126.96,126.94,0.1]
[1765912551476,3.13772621,126.96,126.94,0.1]
[1765912551675,0.66,126.97,126.94,0.1]
[1765912551886,3.13772621,126.96,126.94,0.1]
[1765912552798,0.66,126.96,126.94,0.1]
[1765912553098,3.13772621,126.96,126.94,0.1]
[1765912553301,10.43767296,126.98,126.94,0.1]
[1765912553594,2.47772621,126.98,126.95,0.69]
[1765912553896,3.13772621,126.98,126.94,0.79]
[1765912554193,0.66,126.97,126.94,9.43]
[1765912554494,3.13772621,126.98,126.94,9.43]
[1765912554687,11.01310369,126.98,126.94,17.30740593]
[1765912555074,10.35310369,126.98,126.95,0.69]
[1765912555271,10.35260729,126.99,126.95,0.69]
[1765912555583,3.13772621,127.0,126.96,0.69]
[1765912555982,11.01201919,127.0,126.96,0.69]
[1765912556611,0.66,126.99,126.96,0.69]
[1765912557382,3.13772621,126.99,126.96,0.69]
[1765912558701,7.87525594,126.98,126.96,0.69]
[1765912559902,28.21962143,127.0,126.96,0.69]
[1765912560203,11.01230827,127.0,126.96,17.20630366]
[1765912560375,2.47772621,126.97,126.94,0.1]
[1765912560582,0.66,126.96,126.94,0.1]
[1765912560880,8.53649877,126.96,126.94,0.1]
[1765912561477,10.35379409,126.97,126.94,0.79]
[1765912561698,11.01379409,126.97,126.94,0.79]
[1765912562099,7.87550018,126.98,126.95,0.69]
[1765912562289,11.9828849,127.01,126.98,0.69]
[1765912562489,7.87287778,127.02,126.99,0.69]
[1765912562707,12.63739829,127.03,126.99,11.04183998]
[1765912562887,12.63739829,127.03,127.0,0.69]
[1765912563207,12.63739829,127.03,126.98,10.35294494]
[1765912563208,0.66,127.03,126.98,10.35294494]
[1765912563412,2.47772621,127.0,126.97,8.64]
[1765912563579,2.47772621,127.0,126.96,7.87616812]
[1765912563580,0.66,126.99,126.96,0.69]
[1765912563778,3.13772621,126.99,126.95,9.32]
[1765912563983,0.67,126.97,126.94,0.1]
[1765912564287,3.14772621,126.99,126.95,0.68]
[1765912564489,0.67,126.98,126.95,0.68]
[1765912564695,7.87587619,126.97,126.94,9.42]
[1765912564985,3.14772621,127.0,126.95,2.47772621]
[1765912565205,2.47772621,127.0,126.96,0.68]
[1765912565507,7.31396175,127.0,126.96,0.68]
[1765912565807,6.64396175,126.99,126.96,0.68]
[1765912565995,6.64396175,126.99,126.94,23.26158367]
[1765912565996,0.67,126.99,126.94,14.62158367]
[1765912566308,0.67,126.98,126.95,9.32]
[1765912566491,7.31396175,126.99,126.95,9.32]
[1765912566895,14.51735754,127.01,126.97,0.68]
[1765912567409,8.54339579,127.01,126.97,0.68]
[1765912567593,15.18617103,127.01,126.97,0.68]
[1765912568396,6.64277524,127.0,126.97,0.68]
[1765912569407,8.54339579,127.01,126.97,0.68]
[1765912569607,6.64277524,127.0,126.97,0.68]
[1765912570113,15.18617103,127.01,126.97,7.87560284]
[1765912570316,15.18617103,127.01,126.97,8.55560284]
[1765912570512,6.64277524,127.0,126.97,0.68]
[1765912571409,14.51691294,127.0,126.97,8.55576846]
[1765912571629,14.51691294,127.0,126.98,0.68]
[1765912572505,7.8741377,127.0,126.98,0.68]
[1765912572815,14.51691294,127.0,126.98,0.68]
[1765912572993,0.67,126.98,126.94,7.97717047]
[1765912573186,27.55917707,127.0,126.95,16.51675607]
[1765912573387,7.8741377,127.0,126.96,0.68]
[1765912574010,8.5441377,127.0,126.96,0.68]
[1765912574522,7.8734852,127.01,126.97,0.68]
[1765912574689,7.8734852,127.01,126.98,0.68]
[1765912574890,7.8734852,127.01,126.99,9.32]
[1765912575534,8.54284377,127.02,126.99,9.32]
[1765912575707,7.87284377,127.02,127.0,0.68]
[1765912576333,8.54215618,127.03,127.0,0.68]
[1765912576537,7.87215618,127.03,127.0,8.5540071]
[1765912577044,4.10456906,127.05,127.01,0.68]
[1765912577209,37.42642132,127.06,127.01,0.68]
[1765912577538,7.87059701,127.06,127.0,27.55904647]
[1765912577723,7.31277524,127.07,127.03,0.68]
[1765912577905,7.31277524,127.07,127.04,8.64]
[1765912578439,15.18260131,127.07,127.04,8.64]
[1765912578620,7.86982607,127.07,127.04,17.19132481]
[1765912578822,7.86982607,127.07,127.05,0.68]
[1765912579024,7.86982607,127.07,127.04,17.19132481]
[1765912579334,7.86982607,127.07,127.05,0.68]
[1765912579538,7.31277524,127.1,127.05,0.68]
[1765912579735,11.41671728,127.1,127.05,0.68]
[1765912580103,10.74671728,127.1,127.05,0.68]
[1765912580310,4.10394204,127.1,127.06,0.68]
[1765912580538,19.28489049,127.1,127.07,9.32]
[1765912581033,0.67,127.07,127.06,8.64]
[1765912581222,7.31277524,127.08,127.06,8.64]
[1765912581418,0.67,127.08,127.06,8.64]
[1765912581736,0.67,127.09,127.06,8.64]
[1765912582029,0.67,127.09,127.06,9.32]
[1765912582732,8.53875992,127.09,127.06,9.32]
[1765912583445,7.86875992,127.09,127.06,9.32]
[1765912583743,7.86875992,127.09,127.06,17.1901714]
[1765912583921,7.86875992,127.09,127.06,9.32]
[1765912584237,7.86875992,127.09,127.06,17.19016885]
[1765912584434,7.86875992,127.09,127.06,9.32]
[1765912584610,11.97198961,127.1,127.07,0.68]
[1765912584815,8.53804757,127.1,127.07,0.68]
[1765912585010,15.18082281,127.1,127.06,8.64]
[1765912585213,6.64277524,127.09,127.06,9.32]
[1765912585416,6.64277524,127.09,127.06,0.68]
[1765912585635,6.64277524,127.09,127.07,8.62]
[1765912585835,6.64277524,127.09,127.06,0.68]
[1765912586008,11.97069189,127.11,127.08,0.68]
[1765912586207,4.10331446,127.11,127.08,0.68]
[1765912586825,11.97052065,127.11,127.08,0.68]
[1765912588740,34.11436649,127.11,127.07,8.62]
[1765912588941,34.11436649,127.11,127.04,19.67822703]
[1765912588942,0.67,127.07,127.04,8.62]
[1765912589150,3.14584175,127.06,127.04,8.62]
[1765912589318,31.63852474,127.11,127.04,8.62]
[1765912589319,3.14584175,127.07,127.04,8.62]
[1765912589517,4.54176198,127.07,127.04,8.62]
[1765912589929,3.87176198,127.05,127.04,8.62]
[1765912590129,3.87176198,127.05,127.01,7.8731053]
[1765912590130,4.54176198,127.05,127.03,8.62]
[1765912590609,8.62,127.1,127.03,8.62]
[1765912590811,7.86905886,127.08,127.05,0.68]
[1765912591011,0.67,127.05,127.0,7.87362175]
[1765912591212,4.54176198,127.04,127.01,8.62]
[1765912591441,11.4598692,127.04,127.01,9.3]
[1765912591935,10.7898692,127.07,127.04,0.68]
[1765912592124,11.4598692,127.06,127.05,8.62]
[1765912592323,10.7898692,127.06,127.05,8.62]
[1765912592832,18.66016669,127.06,127.05,8.62]
[1765912593031,7.87029749,127.06,127.05,8.62]
[1765912593940,7.86984908,127.07,127.05,8.62]
[1765912594919,8.58984908,127.07,127.05,8.62]
[1765912595121,19.37971828,127.07,127.05,8.62]
[1765912595320,18.65971828,127.07,127.05,8.62]
[1765912595633,7.86984908,127.07,127.05,8.62]
[1765912595832,0.72,127.05,127.02,8.62]
[1765912596138,10.7898692,127.03,127.02,8.62]
[1765912596840,8.59182657,127.04,127.02,8.62]
[1765912597036,10.7898692,127.03,127.02,8.62]
[1765912598540,19.38169577,127.04,127.02,8.62]
[1765912599427,7.87182657,127.04,127.02,8.62]
[1765912599611,7.87110576,127.05,127.03,0.69]
[1765912600660,0.72,127.03,126.99,11.12767296]
[1765912600835,11.5098692,127.03,127.0,9.31]
[1765912601036,7.87219406,127.03,127.0,8.56378448]
[1765912601244,7.87219406,127.03,127.01,8.62]
[1765912601441,18.66162527,127.04,127.02,0.69]
[1765912601743,18.66162527,127.04,127.01,9.31]
[1765912601939,7.87175607,127.04,127.01,9.31]
[1765912603424,7.87175607,127.04,127.02,0.69]
[1765912603619,7.87175607,127.04,127.01,17.18328682]
[1765912604526,7.87175607,127.04,127.02,0.69]
[1765912605457,7.87175607,127.04,127.01,16.49328682]
[1765912605667,7.87175607,127.04,127.01,17.18328682]
[1765912605862,7.86967813,127.07,127.03,0.69]
[1765912606030,7.86967813,127.07,127.05,0.69]
[1765912606445,7.86967813,127.07,127.04,9.31]
[1765912607251,7.86967813,127.07,127.04,17.18153523]
[1765912608160,7.86843968,127.09,127.05,0.69]
[1765912608327,19.37830888,127.09,127.05,0.69]
[1765912608527,39.0494081,127.09,127.05,0.69]
[1765912608732,18.65830888,127.09,127.06,0.69]
[1765912608929,7.86843968,127.09,127.07,8.62]
[1765912609134,7.86843968,127.09,127.08,8.62]
[1765912611338,8.58843968,127.09,127.08,8.62]
[1765912615059,11.73827243,127.09,127.05,0.69]
[1765912615249,0.72,127.08,127.06,8.62]
[1765912615761,0.72,127.06,127.03,7.87203528]
[1765912615959,0.72,127.06,127.04,8.62]
[1765912616267,0.72,127.07,127.04,8.62]
[1765912616562,0.72,127.07,127.04,9.31]
[1765912616761,8.59000627,127.07,127.04,9.31]
[1765912619459,12.45983902,127.07,127.04,9.31]
[1765912620265,8.59000627,127.07,127.04,9.31]
[1765912620435,8.59000627,127.07,127.04,0.69]
[1765912620642,8.59000627,127.07,127.05,8.62]
[1765912621552,32.13403434,127.07,127.05,8.62]
[1765912621742,0.72,127.06,127.02,8.56267711]
[1765912621938,0.72,127.06,127.03,8.62]
[1765912622167,27.54420159,127.07,127.01,7.87314442]
[1765912622478,0.72,127.01,127.0,8.62]
[1765912622871,4.58983275,127.01,127.0,8.62]
[1765912623174,12.46322854,127.01,127.0,8.62]
[1765912623371,7.87303534,127.02,127.0,8.62]
[1765912623547,12.46286809,127.02,127.0,8.62]
[1765912623748,8.59303534,127.02,127.0,8.62]
[1765912623947,12.46286809,127.02,127.0,8.62]
[1765912624366,7.87241248,127.03,127.0,8.62]
[1765912624673,7.87241248,127.03,127.0,9.28]
[1765912625366,7.87241248,127.03,127.0,17.15399999]
[1765912626955,8.58184109,127.04,127.0,17.15399999]
[1765912627874,8.58184109,127.04,127.01,0.66]
[1765912628075,8.58184109,127.04,127.0,17.15399999]
[1765912628876,8.58184109,127.04,127.01,0.66]
[1765912629071,0.71,127.06,127.02,0.66]
[1765912629273,0.71,127.06,127.03,8.62]
[1765912629650,0.71,127.05,127.03,8.62]
[1765912629851,0.71,127.05,127.04,8.62]
[1765912630474,8.58091696,127.05,127.04,8.62]
[1765912631252,8.58091696,127.05,127.03,8.62]
[1765912634478,19.36981361,127.05,127.03,8.62]
[1765912636086,8.58182346,127.04,127.03,8.62]
[1765912637383,8.58182346,127.04,127.01,8.53323748]
[1765912637589,8.58182346,127.04,127.02,8.62]
[1765912638856,0.71,127.02,126.98,8.53516105]
[1765912639061,0.71,126.99,126.96,0.66]
[1765912639283,0.71,126.99,126.97,8.62]
[1765912639587,0.71,126.98,126.97,8.62]
[1765912639878,10.78851653,127.0,126.97,8.62]
[1765912640079,0.71,126.99,126.97,8.62]
[1765912640777,8.58470718,126.99,126.97,8.62]
[1765912641280,19.37322371,126.99,126.97,8.62]
[1765912641588,0.71,126.98,126.97,8.62]
[1765912642057,19.37322371,126.99,126.97,8.62]
[1765912642779,8.58470718,126.99,126.97,8.62]
[1765912643086,0.71,126.98,126.97,8.62]
[1765912643472,39.0598132,126.99,126.97,8.62]
[1765912643858,0.71,126.98,126.97,8.62]
[1765912644263,28.27129667,126.99,126.97,8.62]
[1765912644478,39.0598132,126.99,126.95,8.53711512]
[1765912644685,39.0598132,126.99,126.97,8.64]
[1765912646589,0.71,126.98,126.97,8.64]
[1765912649167,8.58539724,126.98,126.96,8.64]
[1765912649371,8.58539724,126.98,126.97,8.64]
[1765912649580,8.58539724,126.98,126.95,0.66]
[1765912649888,7.87539724,126.98,126.94,7.97748684]
[1765912650088,8.58607987,126.97,126.95,8.64]
[1765912650396,7.87607987,126.97,126.96,8.64]
[1765912651493,0.71,126.96,126.94,8.74]
[1765912652071,8.58688481,126.96,126.94,8.74]
[1765912654500,7.87688481,126.96,126.94,9.45]
[1765912654697,7.87688481,126.96,126.95,0.71]
[1765912655193,7.87688481,126.96,126.94,9.45]
[1765912655400,8.57587619,126.97,126.94,9.45]
[1765912656392,7.87587619,126.97,126.94,8.74]
[1765912656587,8.57551216,126.98,126.95,0.71]
[1765912656790,8.57490283,126.99,126.95,0.71]
[1765912657181,4.10796236,127.01,126.96,0.71]
[1765912657395,0.7,127.0,126.97,9.35]
[1765912657794,15.16268559,127.01,126.97,9.35]
[1765912658092,12.68150837,127.01,126.98,0.71]
[1765912658299,7.87354601,127.01,126.98,0.71]
[1765912658489,47.99306845,127.06,126.97,8.64]
[1765912658490,10.35383293,127.03,126.99,8.58463579]
[1765912658694,11.05383293,127.03,127.0,8.64]
[1765912658901,11.05383293,127.03,127.0,9.35]
[1765912659410,11.05383293,127.03,127.0,8.64]
[1765912659603,2.48117722,127.01,126.97,0.71]
[1765912659809,0.7,127.0,126.98,8.64]
[1765912660105,2.18117722,127.01,126.98,8.64]
[1765912660405,2.18117722,127.01,126.98,9.35]
[1765912661204,37.99071912,127.03,126.98,9.35]
[1765912661414,10.35512734,127.01,126.98,9.35]
[1765912661911,7.87395012,127.01,126.98,9.35]
[1765912662083,11.05512734,127.01,126.98,9.35]
[1765912662280,0.7,126.99,126.98,8.64]
[1765912662500,3.18117722,127.0,126.98,8.64]
[1765912663507,7.87463579,126.99,126.98,8.64]
[1765912664095,7.87431184,127.0,126.98,9.35]
[1765912665088,0.7,127.03,126.99,0.71]
[1765912665486,8.57241544,127.03,127.0,0.71]
[1765912665708,8.57241544,127.03,127.01,8.64]
[1765912665886,7.87241544,127.03,127.01,8.64]
[1765912666087,8.57241544,127.03,127.01,8.64]
[1765912666688,11.05359266,127.03,127.01,8.64]
[1765912667708,8.57241544,127.03,127.01,8.64]
[1765912667909,7.87241544,127.03,127.01,8.64]
[1765912668115,7.87241544,127.03,127.01,9.35]
[1765912669195,7.87241544,127.03,127.01,8.64]
[1765912671737,7.87241544,127.03,127.01,9.35]
[1765912672311,7.87241544,127.03,127.02,0.71]
[1765912672512,7.87123598,127.05,127.02,0.71]
[1765912672705,7.869909,127.07,127.03,0.71]
[1765912672899,7.869909,127.07,127.05,0.71]
[1765912672900,11.96988942,127.07,127.05,0.71]
[1765912673106,7.869909,127.07,127.05,0.71]
[1765912674242,27.5424074,127.08,127.05,0.71]
[1765912675524,30.72358462,127.08,127.05,0.71]
[1765912676127,30.02358462,127.08,127.05,0.71]
[1765912677227,30.72358462,127.08,127.05,0.71]
[1765912677917,7.86905886,127.08,127.05,0.71]
[1765912678324,7.86905886,127.08,127.06,8.64]
[1765912679212,7.86905886,127.08,127.06,9.35]
[1765912680036,7.86905886,127.08,127.07,0.71]
[1765912680325,0.7,127.08,127.07,8.64]
[1765912680529,30.72103112,127.09,127.07,8.64]
[1765912680728,4.10043512,127.1,127.08,0.71]
[1765912680916,7.86658275,127.12,127.08,0.71]
[1765912681113,0.7,127.11,127.08,0.71]
[1765912681323,0.7,127.1,127.09,8.64]
[1765912681511,3.18117722,127.11,127.09,8.64]
[1765912681710,0.7,127.1,127.09,8.64]
[1765912681917,7.86782061,127.1,127.09,8.64]
[1765912682937,7.86746413,127.11,127.09,9.35]
[1765912683615,7.86746413,127.11,127.09,0.71]
[1765912683820,7.86746413,127.11,127.1,8.62]
[1765912684226,7.86658275,127.12,127.1,8.62]
[1765912684427,7.86658275,127.12,127.05,0.72]
[1765912684428,0.7,127.1,127.05,0.72]
[1765912684738,30.01421686,127.12,127.08,0.72]
[1765912684932,30.71421686,127.12,127.09,9.34]
[1765912685121,30.71421686,127.12,127.09,8.62]
[1765912685318,28.23303964,127.12,127.09,8.62]
[1765912685524,30.71421686,127.12,127.09,9.34]
[1765912686424,8.56658275,127.12,127.09,9.34]
[1765912686619,7.86623787,127.13,127.1,0.72]
[1765912687439,2.48117722,127.12,127.08,7.86889361]
[1765912687740,3.18117722,127.12,127.09,9.34]
[1765912687942,3.18117722,127.11,127.09,8.62]
[1765912688118,3.18117722,127.12,127.09,9.34]
[1765912688322,0.7,127.12,127.09,9.34]
[1765912688519,8.5668402,127.12,127.09,9.34]
[1765912688823,7.86630029,127.13,127.1,0.72]
[1765912689343,8.56630029,127.13,127.1,0.72]
[1765912689638,7.86630029,127.13,127.1,0.72]
[1765912690026,8.56630029,127.13,127.1,0.72]
[1765912690339,7.86510535,127.15,127.11,2.48117722]
[1765912690529,7.86510535,127.15,127.13,0.72]